[Event "1st Lasker Memorial GM 2019"]
[Site "Anogia"]
[Date "2019.09.11"]
[Round "1.1"]
[White "Alexakis, Dimitrios"]
[Black "Avramidou, Anastasia"]
[Result "1-0"]
[ECO "B32"]
[WhiteElo "2077"]
[BlackElo "2249"]
[Annotator "NA"]
[PlyCount "81"]
[EventDate "2019.09.11"]
[EventType "tourn"]
[EventCountry "GRE"]
[SourceTitle "playchess.com"]
[Source "ChessBase"]
[SourceQuality "1"]
[TimeControl "40/5400+30:1800+30"]

1. e4 {[%emt 0:00:00]} c5 {[%emt 0:00:00]} 2. Nf3 {[%emt 0:00:00]} Nc6 {[%emt 0:00:00]} 3. d4 {[%emt 0:00:00]} cxd4 {[%emt 0:00:00]} 4. Nxd4 {[%emt 0:00:00]} e5 {[%emt 0:00:01]} 5. Nb5 {[%emt 0:00:01]} d6 {[%emt 0:00:10]} 6. c4 {[%emt 0:00:06]} a6 {[%emt 0:00:15]} 7. N5c3 {[%emt 0:00:20]} g6 {[%emt 0:00:16]} 8. Be3 {[%emt 0:03:09]} Be6 {[%emt 0:02:10]} 9. Na3 {[%emt 0:16:00]} Bg7 {[%emt 0:00:14]} 10. Nc2 {[%emt 0:02:48]} Nf6 {[%emt 0:05:20]} 11. Be2 {[%emt 0:02:54]} O-O {[%emt 0:00:14]} 12. O-O {[%emt 0:00:56]} Rc8 {[%emt 0:00:43]} 13. f3 {[%emt 0:01:41]} Nh5 {[%emt 0:15:56]} 14. Qd2 {[%emt 0:06:10]} Nf4 {[%emt 0:13:05]} 15. Rfd1 {[%emt 0:04:47]} Qg5 {[%emt 0:17:12]} 16. Bf1 {[%emt 0:03:41]} Na5 {[%emt 0:15:08]} 17. b3 {[%emt 0:06:40]} b5 {[%emt 0:00:25]} 18. Kh1 {[%emt 0:16:15]} bxc4 {[%emt 0:02:14]} 19. b4 {[%emt 0:00:14]} Nc6 {[%emt 0:10:34]} 20. g3 {[%emt 0:01:21]} Qh5 {[%emt 0:00:45]} 21. gxf4 {[%emt 0:00:25]} exf4 {[%emt 0:00:33]} 22. Bd4 {[%emt 0:00:09]} Qxf3+ {[%emt 0:07:42]} 23. Bg2 {[%emt 0:00:27]} Qg4 {[%emt 0:00:12]} 24. Bxg7 {[%emt 0:00:13]} Kxg7 {[%emt 0:00:06]} 25. Rf1 {[%emt 0:00:18]} g5 {[%emt 0:00:26]} 26. Nd4 {[%emt 0:04:58]} Ne5 {[%emt 0:00:17]} 27. Rg1 {[%emt 0:05:17]} Kh8 {[%emt 0:02:31]} 28. Raf1 {[%emt 0:01:26]} Rg8 {[%emt 0:04:57]} 29. Nf5 {[%emt 0:12:33]} Bxf5 {[%emt 0:02:00]} 30. Qxd6 {[%emt 0:00:10]} Rce8 {[%emt 0:00:59]} 31. Qf6+ {[%emt 0:00:57]} Rg7 {[%emt 0:00:05]} 32. exf5 {[%emt 0:05:43]} Nd7 {[%emt 0:00:33]} 33. Qd4 {[%emt 0:01:14]} Qxf5 {[%emt 0:00:41]} 34. Be4 {[%emt 0:01:14]} Qe6 {[%emt 0:00:37]} 35. Rxg5 {[%emt 0:00:10]} Qf6 {[%emt 0:00:35]} 36. Qxd7 {[%emt 0:03:54]} Rd8 {[%emt 0:00:05]} 37. Rf5 {[%emt 0:00:25]} Qh4 {[%emt 0:00:06]} 38. Rh5 {[%emt 0:00:12]} Qf6 {[%emt 0:00:36]} 39. Qf5 {[%emt 0:00:29]} Qxc3 {[%emt 0:00:12]} 40. Rxh7+ {[%emt 0:00:00]} Kg8 {[%emt 0:00:00]} 41. Rxg7+ {[%emt 0:00:15]} 1-0

[Event "1st Lasker Memorial GM 2019"]
[Site "Anogia"]
[Date "2019.09.11"]
[Round "1.2"]
[White "Nikolaidis, Ioannis"]
[Black "Alexakis, Georgios"]
[Result "1-0"]
[ECO "A25"]
[WhiteElo "2530"]
[BlackElo "2175"]
[Annotator "ChessBase"]
[PlyCount "79"]
[EventDate "2019.09.11"]
[EventType "tourn"]
[EventCountry "GRE"]
[SourceTitle "playchess.com"]
[Source "ChessBase"]
[SourceQuality "1"]
[TimeControl "40/5400+30:1800+30"]

1. c4 {[%emt 0:00:00]} e5 {[%emt 0:00:27]} 2. Nc3 {[%emt 0:00:10]} Nc6 {[%emt 0:02:54]} 3. g3 {[%emt 0:01:10]} f5 {[%emt 0:00:35]} 4. e3 {[%emt 0:03:25]} Nf6 {[%emt 0:01:55]} 5. d4 {[%emt 0:00:39]} Bb4 {[%emt 0:03:58]} 6. Nge2 {[%emt 0:00:18]} O-O {[%emt 0:01:24]} 7. Bg2 {[%emt 0:06:33]} d6 {[%emt 0:00:54]} 8. O-O {[%emt 0:01:23]} Bxc3 {[%emt 0:01:34]} 9. Nxc3 {[%emt 0:00:08]} Kh8 {[%emt 0:01:39]} 10. d5 {[%emt 0:04:16]} Ne7 {[%emt 0:01:48]} 11. f4 {[%emt 0:00:11]} e4 {[%emt 0:04:05]} 12. b3 {[%emt 0:01:57]} a5 {[%emt 0:04:02]} 13. Qd2 {[%emt 0:05:24]} h5 {[%emt 0:04:19]} 14. Bb2 {[%emt 0:04:54]} h4 {[%emt 0:02:22]} 15. Nb5 {[%emt 0:09:38]} Bd7 {[%emt 0:03:12]} 16. Nd4 {[%emt 0:00:03]} Qe8 {[%emt 0:01:03]} 17. gxh4 {[%emt 0:11:28]} Qh5 {[%emt 0:00:48]} 18. Qf2 {[%emt 0:01:56]} Ng6 {[%emt 0:02:21]} 19. Qg3 {[%emt 0:00:20]} Nxh4 {[%emt 0:02:24]} 20. h3 {[%emt 0:00:57]} Qh6 {[%emt 0:04:44]} 21. Rf2 {[%emt 0:03:32]} Rf7 {[%emt 0:03:00]} 22. Kh1 {[%emt 0:05:57]} Rg8 {[%emt 0:03:45]} 23. Qg5 {[%emt 0:05:26]} Kh7 {[%emt 0:05:01]} 24. Rg1 {[%emt 0:02:33]} Re8 {[%emt 0:04:51]} 25. Bf1 {[%emt 0:02:30]} c5 {[%emt 0:03:15]} 26. dxc6 {[%emt 0:00:34]} bxc6 {[%emt 0:00:04]} 27. Be2 {[%emt 0:03:27]} c5 {[%emt 0:03:32]} 28. Qxh6+ {[%emt 0:02:09]} gxh6 {[%emt 0:01:26]} 29. Nb5 {[%emt 0:00:55]} Bxb5 {[%emt 0:01:49]} 30. cxb5 {[%emt 0:00:03]} d5 {[%emt 0:00:29]} 31. Rc1 {[%emt 0:05:58]} d4 {[%emt 0:03:32]} 32. Rxc5 {[%emt 0:00:28]} dxe3 {[%emt 0:01:25]} 33. Rf1 {[%emt 0:00:04]} Rd8 {[%emt 0:03:56]} 34. b6 {[%emt 0:03:13]} Nd5 {[%emt 0:06:03]} 35. Rd1 {[%emt 0:04:36]} Nxf4 {[%emt 0:02:56]} 36. Rc7 {[%emt 0:08:57]} Rdf8 {[%emt 0:06:39]} 37. Rdd7 {[%emt 0:00:24]} Kg6 {[%emt 0:02:21]} 38. Rxf7 {[%emt 0:00:36]} Nxe2 {[%emt 0:00:05]} 39. Rxf8 {[%emt 0:01:39]} Ng3+ {[%emt 0:00:19]} 40. Kh2 {[%emt 0:00:00]} 1-0

[Event "1st Lasker Memorial GM 2019"]
[Site "Anogia"]
[Date "2019.09.11"]
[Round "1.5"]
[White "Hristodoulou, Panagiotis"]
[Black "Delchev, Aleksander"]
[Result "1/2-1/2"]
[ECO "B01"]
[WhiteElo "2280"]
[BlackElo "2568"]
[Annotator "ChessBase"]
[PlyCount "77"]
[EventDate "2019.09.11"]
[EventType "tourn"]
[EventCountry "GRE"]
[SourceTitle "playchess.com"]
[Source "ChessBase"]
[SourceQuality "1"]
[TimeControl "40/5400+30:1800+30"]

1. e4 {[%emt 0:00:00]} d5 {[%emt 0:00:00]} 2. exd5 {[%emt 0:00:00]} Qxd5 {[%emt 0:00:00]} 3. Nc3 {[%emt 0:00:09]} Qd6 {[%emt 0:00:00]} 4. d4 {[%emt 0:00:21]} Nf6 {[%emt 0:00:00]} 5. Nf3 {[%emt 0:00:21]} g6 {[%emt 0:00:08]} 6. Nb5 {[%emt 0:03:48]} Qd8 {[%emt 0:02:32]} 7. Bf4 {[%emt 0:06:59]} Na6 {[%emt 0:07:21]} 8. c4 {[%emt 0:02:56]} Bg7 {[%emt 0:00:09]} 9. Be2 {[%emt 0:00:21]} O-O {[%emt 0:00:07]} 10. O-O {[%emt 0:00:22]} c6 {[%emt 0:07:19]} 11. Nc3 {[%emt 0:00:46]} Nc7 {[%emt 0:00:04]} 12. h3 {[%emt 0:02:55]} Ne6 {[%emt 0:00:23]} 13. Be3 {[%emt 0:06:17]} Qc7 {[%emt 0:04:00]} 14. Qd2 {[%emt 0:03:54]} Rd8 {[%emt 0:02:32]} 15. Rfd1 {[%emt 0:09:21]} b6 {[%emt 0:00:57]} 16. Rac1 {[%emt 0:01:54]} Bb7 {[%emt 0:00:18]} 17. g3 {[%emt 0:06:28]} Rac8 {[%emt 0:22:44]} 18. Qe1 {[%emt 0:12:01]} Qb8 {[%emt 0:00:48]} 19. b4 {[%emt 0:02:28]} Ne8 {[%emt 0:15:44]} 20. a4 {[%emt 0:12:20]} Rd7 {[%emt 0:04:57]} 21. Rd3 {[%emt 0:06:40]} Rcd8 {[%emt 0:05:56]} 22. Rcd1 {[%emt 0:00:16]} Ba6 {[%emt 0:04:42]} 23. b5 {[%emt 0:03:44]} cxb5 {[%emt 0:00:05]} 24. axb5 {[%emt 0:01:02]} Bb7 {[%emt 0:00:07]} 25. d5 {[%emt 0:02:13]} Nc5 {[%emt 0:00:05]} 26. Bxc5 {[%emt 0:01:44]} bxc5 {[%emt 0:00:02]} 27. Ne4 {[%emt 0:02:09]} Rc7 {[%emt 0:02:31]} 28. Bf1 {[%emt 0:02:48]} Nd6 {[%emt 0:06:43]} 29. Nxd6 {[%emt 0:00:27]} exd6 {[%emt 0:00:13]} 30. Re3 {[%emt 0:00:22]} Bc8 {[%emt 0:03:53]} 31. Re8+ {[%emt 0:00:55]} Rxe8 {[%emt 0:00:04]} 32. Qxe8+ {[%emt 0:00:03]} Bf8 {[%emt 0:00:02]} 33. Re1 {[%emt 0:01:35]} Qb7 {[%emt 0:06:40]} 34. Ng5 {[%emt 0:02:48]} Re7 {[%emt 0:01:52]} 35. Rxe7 {[%emt 0:00:08]} Qxe7 {[%emt 0:00:01]} 36. Qxc8 {[%emt 0:00:07]} Qxg5 {[%emt 0:00:04]} 37. Qc7 {[%emt 0:00:11]} Qe7 {[%emt 0:01:31]} 38. Qxe7 {[%emt 0:00:05]} Bxe7 {[%emt 0:00:03]} 39. f4 {[%emt 0:00:19]} 1/2-1/2

[Event "1st Lasker Memorial GM 2019"]
[Site "Anogia"]
[Date "2019.09.12"]
[Round "2.1"]
[White "Avramidou, Anastasia"]
[Black "Delchev, Aleksander"]
[Result "1/2-1/2"]
[ECO "D90"]
[WhiteElo "2249"]
[BlackElo "2568"]
[Annotator "ChessBase"]
[PlyCount "57"]
[EventDate "2019.09.11"]
[EventType "tourn"]
[EventCountry "GRE"]
[SourceTitle "playchess.com"]
[Source "ChessBase"]
[SourceQuality "1"]
[TimeControl "40/5400+30:1800+30"]

1. d4 {[%emt 0:00:00]} Nf6 {[%emt 0:00:00]} 2. Nf3 {[%emt 0:00:00]} g6 {[%emt 0:00:00]} 3. c4 {[%emt 0:00:00]} Bg7 {[%emt 0:00:00]} 4. Nc3 {[%emt 0:00:02]} d5 {[%emt 0:00:01]} 5. h4 {[%emt 0:00:04]} c6 {[%emt 0:00:25]} 6. cxd5 {[%emt 0:00:08]} cxd5 {[%emt 0:00:26]} 7. Bf4 {[%emt 0:00:07]} Nc6 {[%emt 0:07:39]} 8. e3 {[%emt 0:00:09]} O-O {[%emt 0:12:20]} 9. Qb3 {[%emt 0:00:10]} Na5 {[%emt 0:04:04]} 10. Qa3 {[%emt 0:00:13]} a6 {[%emt 0:12:48]} 11. Ne5 {[%emt 0:04:18]} Nh5 {[%emt 0:07:03]} 12. Bh2 {[%emt 0:06:30]} f6 {[%emt 0:03:49]} 13. Nd3 {[%emt 0:02:23]} e5 {[%emt 0:05:56]} 14. Be2 {[%emt 0:04:57]} Re8 {[%emt 0:08:00]} 15. O-O {[%emt 0:04:14]} exd4 {[%emt 0:14:25]} 16. exd4 {[%emt 0:00:24]} Nc6 {[%emt 0:00:19]} 17. Bxh5 {[%emt 0:05:53]} gxh5 {[%emt 0:00:03]} 18. Nf4 {[%emt 0:00:23]} Bf8 {[%emt 0:01:49]} 19. Qb3 {[%emt 0:02:11]} Nxd4 {[%emt 0:01:31]} 20. Qxd5+ {[%emt 0:00:25]} Be6 {[%emt 0:03:53]} 21. Nxe6 {[%emt 0:06:47]} Rxe6 {[%emt 0:00:04]} 22. Qxh5 {[%emt 0:00:15]} f5 {[%emt 0:00:12]} 23. Rad1 {[%emt 0:04:11]} Bg7 {[%emt 0:00:02]} 24. Bf4 {[%emt 0:04:42]} Qe8 {[%emt 0:04:15]} 25. Qxe8+ {[%emt 0:00:09]} Raxe8 {[%emt 0:00:04]} 26. Be3 {[%emt 0:01:50]} Nc2 {[%emt 0:00:16]} 27. Rd7 {[%emt 0:08:59]} Nxe3 {[%emt 0:00:29]} 28. fxe3 {[%emt 0:00:07]} Rxe3 {[%emt 0:05:50]} 29. Rxf5 {[%emt 0:01:46]} 1/2-1/2

[Event "1st Lasker Memorial GM 2019"]
[Site "Anogia"]
[Date "2019.09.12"]
[Round "2.2"]
[White "Bronstein, Or"]
[Black "Hristodoulou, Panagiotis"]
[Result "1/2-1/2"]
[ECO "D26"]
[WhiteElo "2404"]
[BlackElo "2280"]
[Annotator "NA"]
[PlyCount "80"]
[EventDate "2019.09.11"]
[EventType "tourn"]
[EventCountry "GRE"]
[SourceTitle "playchess.com"]
[Source "ChessBase"]
[SourceQuality "1"]
[TimeControl "40/5400+30:1800+30"]

1. d4 {[%emt 0:00:00]} d5 {[%emt 0:00:00]} 2. c4 {[%emt 0:00:00]} e6 {[%emt 0:00:00]} 3. Nf3 {[%emt 0:00:43]} a6 {[%emt 0:00:04]} 4. Nc3 {[%emt 0:05:12]} dxc4 {[%emt 0:00:16]} 5. e3 {[%emt 0:02:53]} Nf6 {[%emt 0:00:59]} 6. a4 {[%emt 0:04:33]} c5 {[%emt 0:01:46]} 7. Bxc4 {[%emt 0:01:52]} Nc6 {[%emt 0:01:10]} 8. O-O {[%emt 0:00:53]} cxd4 {[%emt 0:02:58]} 9. exd4 {[%emt 0:00:03]} Be7 {[%emt 0:00:17]} 10. Re1 {[%emt 0:11:30]} O-O {[%emt 0:00:19]} 11. Bf4 {[%emt 0:01:40]} Nb4 {[%emt 0:03:43]} 12. Qe2 {[%emt 0:06:36]} b6 {[%emt 0:18:11]} 13. Rad1 {[%emt 0:03:44]} Bb7 {[%emt 0:01:20]} 14. Ne5 {[%emt 0:00:14]} Nbd5 {[%emt 0:02:29]} 15. Bc1 {[%emt 0:08:25]} Re8 {[%emt 0:20:44]} 16. Rd3 {[%emt 0:02:42]} Nxc3 {[%emt 0:01:11]} 17. bxc3 {[%emt 0:00:27]} Bd5 {[%emt 0:00:23]} 18. Bxd5 {[%emt 0:05:25]} Qxd5 {[%emt 0:00:54]} 19. c4 {[%emt 0:00:48]} Qb7 {[%emt 0:11:37]} 20. Rg3 {[%emt 0:07:48]} Rad8 {[%emt 0:01:24]} 21. Bh6 {[%emt 0:01:39]} Bf8 {[%emt 0:00:11]} 22. Qe3 {[%emt 0:10:03]} Nh5 {[%emt 0:09:01]} 23. Rh3 {[%emt 0:00:09]} f6 {[%emt 0:03:26]} 24. Ng4 {[%emt 0:00:52]} Qf7 {[%emt 0:00:14]} 25. Qf3 {[%emt 0:05:06]} gxh6 {[%emt 0:14:51]} 26. Rxh5 {[%emt 0:00:12]} f5 {[%emt 0:00:38]} 27. Ne5 {[%emt 0:00:54]} Qf6 {[%emt 0:00:02]} 28. Qc6 {[%emt 0:01:55]} Bb4 {[%emt 0:04:59]} 29. Re3 {[%emt 0:03:16]} Bc5 {[%emt 0:00:35]} 30. Rg3+ {[%emt 0:01:17]} Kf8 {[%emt 0:00:47]} 31. Nd7+ {[%emt 0:02:50]} Rxd7 {[%emt 0:00:04]} 32. Qxd7 {[%emt 0:00:02]} Bxd4 {[%emt 0:00:55]} 33. Rg8+ {[%emt 0:04:36]} Kxg8 {[%emt 0:00:04]} 34. Qxe8+ {[%emt 0:00:03]} Kg7 {[%emt 0:00:04]} 35. Qd7+ {[%emt 0:00:17]} Kf8 {[%emt 0:01:18]} 36. Rh3 {[%emt 0:03:01]} Qe5 {[%emt 0:00:33]} 37. Qc8+ {[%emt 0:01:52]} Kf7 {[%emt 0:00:02]} 38. Qb7+ {[%emt 0:00:08]} Kf8 {[%emt 0:00:03]} 39. Qc8+ {[%emt 0:02:10]} Kf7 {[%emt 0:00:04]} 40. Qb7+ {[%emt 0:00:00]} Kf8 {[%emt 0:00:00]} 1/2-1/2

[Event "1st Lasker Memorial GM 2019"]
[Site "Anogia"]
[Date "2019.09.12"]
[Round "2.3"]
[White "Colijn, Stefan"]
[Black "Beerdsen, Thomas"]
[Result "1/2-1/2"]
[ECO "A80"]
[WhiteElo "2329"]
[BlackElo "2482"]
[Annotator "ChessBase"]
[PlyCount "68"]
[EventDate "2019.09.11"]
[EventType "tourn"]
[EventCountry "GRE"]
[SourceTitle "playchess.com"]
[Source "ChessBase"]
[SourceQuality "1"]
[TimeControl "40/5400+30:1800+30"]

1. d4 {[%emt 0:00:00]} f5 {[%emt 0:00:00]} 2. Bg5 {[%emt 0:00:00]} h6 {[%emt 0:00:00]} 3. Bh4 {[%emt 0:00:01]} g5 {[%emt 0:00:00]} 4. e4 {[%emt 0:00:08]} Nf6 {[%emt 0:00:00]} 5. e5 {[%emt 0:00:22]} e6 {[%emt 0:00:00]} 6. exf6 {[%emt 0:01:33]} Qxf6 {[%emt 0:00:09]} 7. Bg3 {[%emt 0:00:49]} f4 {[%emt 0:00:05]} 8. Be2 {[%emt 0:01:08]} d5 {[%emt 0:03:38]} 9. Bh5+ {[%emt 0:00:26]} Kd8 {[%emt 0:04:21]} 10. Nf3 {[%emt 0:00:40]} Nc6 {[%emt 0:00:43]} 11. O-O {[%emt 0:01:30]} Bg7 {[%emt 0:09:48]} 12. c3 {[%emt 0:01:01]} a5 {[%emt 0:07:54]} 13. h3 {[%emt 0:05:27]} fxg3 {[%emt 0:00:33]} 14. fxg3 {[%emt 0:00:04]} Rf8 {[%emt 0:02:45]} 15. Nbd2 {[%emt 0:02:39]} Qe7 {[%emt 0:00:16]} 16. Qc2 {[%emt 0:09:17]} Bd7 {[%emt 0:02:57]} 17. Rae1 {[%emt 0:01:43]} Kc8 {[%emt 0:04:54]} 18. Kh2 {[%emt 0:01:07]} Kb8 {[%emt 0:11:13]} 19. Nb3 {[%emt 0:10:53]} b6 {[%emt 0:01:35]} 20. Nc1 {[%emt 0:03:08]} Kb7 {[%emt 0:05:17]} 21. Nd3 {[%emt 0:00:14]} Qd6 {[%emt 0:02:29]} 22. Rf2 {[%emt 0:04:38]} Be8 {[%emt 0:04:20]} 23. Bxe8 {[%emt 0:04:57]} Raxe8 {[%emt 0:00:22]} 24. Rfe2 {[%emt 0:00:39]} Rf5 {[%emt 0:11:00]} 25. Nfe5 {[%emt 0:06:58]} Nxe5 {[%emt 0:02:27]} 26. Nxe5 {[%emt 0:00:08]} h5 {[%emt 0:01:16]} 27. Qa4 {[%emt 0:11:01]} Ref8 {[%emt 0:03:59]} 28. Qb5 {[%emt 0:03:24]} h4 {[%emt 0:03:29]} 29. Qd3 {[%emt 0:07:56]} Rf1 {[%emt 0:05:25]} 30. Rxf1 {[%emt 0:03:13]} Rxf1 {[%emt 0:00:07]} 31. Qe3 {[%emt 0:05:55]} Qf8 {[%emt 0:07:11]} 32. Ng4 {[%emt 0:02:22]} Qd6 {[%emt 0:02:45]} 33. Ne5 {[%emt 0:00:53]} Qf8 {[%emt 0:01:17]} 34. Ng4 {[%emt 0:00:15]} Qd6 {[%emt 0:03:04]} 1/2-1/2

[Event "1st Lasker Memorial GM 2019"]
[Site "Anogia"]
[Date "2019.09.12"]
[Round "2.4"]
[White "Alexakis, Georgios"]
[Black "Rozentalis, Eduardas"]
[Result "1-0"]
[ECO "D00"]
[WhiteElo "2175"]
[BlackElo "2533"]
[Annotator "ChessBase"]
[PlyCount "75"]
[EventDate "2019.09.11"]
[EventType "tourn"]
[EventCountry "GRE"]
[SourceTitle "playchess.com"]
[Source "ChessBase"]
[SourceQuality "1"]
[TimeControl "40/5400+30:1800+30"]

1. d4 {[%emt 0:01:08]} d5 {[%emt 0:00:06]} 2. Bf4 {[%emt 0:00:39]} Bg4 {[%emt 0:00:28]} 3. h3 {[%emt 0:02:40]} Bh5 {[%emt 0:00:33]} 4. Nd2 {[%emt 0:03:56]} e6 {[%emt 0:01:42]} 5. g4 {[%emt 0:03:51]} Bg6 {[%emt 0:00:13]} 6. Ngf3 {[%emt 0:01:45]} Bd6 {[%emt 0:00:26]} 7. Ne5 {[%emt 0:01:47]} Nd7 {[%emt 0:09:44]} 8. Nxg6 {[%emt 0:05:13]} hxg6 {[%emt 0:00:11]} 9. Bxd6 {[%emt 0:02:44]} cxd6 {[%emt 0:00:19]} 10. e3 {[%emt 0:05:16]} Ne7 {[%emt 0:02:05]} 11. Bg2 {[%emt 0:01:28]} Qb6 {[%emt 0:03:13]} 12. Rb1 {[%emt 0:11:37]} Rc8 {[%emt 0:02:50]} 13. O-O {[%emt 0:00:55]} O-O {[%emt 0:04:24]} 14. c3 {[%emt 0:01:22]} Qc7 {[%emt 0:06:23]} 15. Qb3 {[%emt 0:04:50]} Nb6 {[%emt 0:01:25]} 16. Rbc1 {[%emt 0:03:29]} Rfe8 {[%emt 0:07:10]} 17. a4 {[%emt 0:04:22]} Qd7 {[%emt 0:08:41]} 18. a5 {[%emt 0:01:40]} Nc4 {[%emt 0:00:34]} 19. Nxc4 {[%emt 0:00:12]} Rxc4 {[%emt 0:00:06]} 20. e4 {[%emt 0:00:53]} Qc6 {[%emt 0:08:09]} 21. Rfe1 {[%emt 0:03:01]} dxe4 {[%emt 0:11:22]} 22. Bf1 {[%emt 0:05:03]} d5 {[%emt 0:01:07]} 23. Bxc4 {[%emt 0:00:06]} dxc4 {[%emt 0:00:03]} 24. Qc2 {[%emt 0:01:46]} f5 {[%emt 0:00:54]} 25. b3 {[%emt 0:09:37]} Nd5 {[%emt 0:02:26]} 26. Qd2 {[%emt 0:06:43]} Rf8 {[%emt 0:09:26]} 27. bxc4 {[%emt 0:00:34]} Qxc4 {[%emt 0:00:11]} 28. g5 {[%emt 0:03:36]} Rc8 {[%emt 0:02:21]} 29. Rc2 {[%emt 0:02:53]} b6 {[%emt 0:10:57]} 30. axb6 {[%emt 0:01:11]} axb6 {[%emt 0:00:03]} 31. Qe2 {[%emt 0:03:57]} Nb4 {[%emt 0:03:42]} 32. Qxc4 {[%emt 0:05:28]} Rxc4 {[%emt 0:00:05]} 33. Rd2 {[%emt 0:01:34]} Rxc3 {[%emt 0:00:10]} 34. h4 {[%emt 0:00:27]} Kh7 {[%emt 0:04:41]} 35. Re3 {[%emt 0:01:03]} Nd3 {[%emt 0:00:19]} 36. f3 {[%emt 0:00:29]} Rc1+ {[%emt 0:00:10]} 37. Kh2 {[%emt 0:00:23]} Re1 {[%emt 0:00:09]} 38. Rdxd3 {[%emt 0:00:16]} 1-0

[Event "1st Lasker Memorial GM 2019"]
[Site "Anogia"]
[Date "2019.09.12"]
[Round "2.5"]
[White "Alexakis, Dimitrios"]
[Black "Nikolaidis, Ioannis"]
[Result "1/2-1/2"]
[ECO "C90"]
[WhiteElo "2077"]
[BlackElo "2530"]
[Annotator "ChessBase"]
[PlyCount "32"]
[EventDate "2019.09.11"]
[EventType "tourn"]
[EventCountry "GRE"]
[SourceTitle "playchess.com"]
[Source "ChessBase"]
[SourceQuality "1"]
[TimeControl "40/5400+30:1800+30"]

1. e4 {[%emt 0:05:29]} e5 {[%emt 0:01:10]} 2. Nf3 {[%emt 0:00:10]} Nc6 {[%emt 0:00:40]} 3. Bb5 {[%emt 0:00:42]} a6 {[%emt 0:00:54]} 4. Ba4 {[%emt 0:00:05]} Nf6 {[%emt 0:00:29]} 5. O-O {[%emt 0:00:08]} Be7 {[%emt 0:02:13]} 6. Re1 {[%emt 0:00:08]} b5 {[%emt 0:00:17]} 7. Bb3 {[%emt 0:00:04]} d6 {[%emt 0:00:04]} 8. c3 {[%emt 0:00:34]} O-O {[%emt 0:00:15]} 9. d3 {[%emt 0:10:21]} Na5 {[%emt 0:08:40]} 10. Bc2 {[%emt 0:00:02]} c5 {[%emt 0:00:04]} 11. Nbd2 {[%emt 0:00:10]} Re8 {[%emt 0:00:49]} 12. Nf1 {[%emt 0:00:27]} h6 {[%emt 0:03:24]} 13. Ng3 {[%emt 0:03:01]} Nc6 {[%emt 0:02:56]} 14. Bb3 {[%emt 0:05:41]} Na5 {[%emt 0:01:13]} 15. Bc2 {[%emt 0:00:09]} Nc6 {[%emt 0:00:56]} 16. Bb3 {[%emt 0:00:15]} Na5 {[%emt 0:00:06]} 1/2-1/2

[Event "1st Lasker Memorial GM 2019"]
[Site "Anogia"]
[Date "2019.09.13"]
[Round "3.1"]
[White "Hristodoulou, Panagiotis"]
[Black "Avramidou, Anastasia"]
[Result "1/2-1/2"]
[ECO "B07"]
[WhiteElo "2280"]
[BlackElo "2249"]
[Annotator "NA"]
[PlyCount "83"]
[EventDate "2019.09.11"]
[EventType "tourn"]
[EventCountry "GRE"]
[SourceTitle "playchess.com"]
[Source "ChessBase"]
[SourceQuality "1"]
[TimeControl "40/5400+30:1800+30"]

1. e4 {[%emt 0:00:00]} d6 {[%emt 0:05:53]} 2. d4 {[%emt 0:00:00]} Nf6 {[%emt 0:00:09]} 3. Nc3 {[%emt 0:00:00]} e5 {[%emt 0:00:06]} 4. Nge2 {[%emt 0:13:30]} exd4 {[%emt 0:00:35]} 5. Nxd4 {[%emt 0:00:06]} Be7 {[%emt 0:00:14]} 6. g3 {[%emt 0:03:38]} O-O {[%emt 0:00:18]} 7. Bg2 {[%emt 0:00:02]} Re8 {[%emt 0:00:24]} 8. O-O {[%emt 0:00:11]} Bf8 {[%emt 0:01:43]} 9. h3 {[%emt 0:02:01]} c6 {[%emt 0:05:43]} 10. Re1 {[%emt 0:12:23]} Nbd7 {[%emt 0:05:35]} 11. a4 {[%emt 0:01:54]} a5 {[%emt 0:00:41]} 12. Bf4 {[%emt 0:09:04]} Ne5 {[%emt 0:00:58]} 13. b3 {[%emt 0:02:59]} g6 {[%emt 0:14:46]} 14. Qd2 {[%emt 0:01:40]} Nh5 {[%emt 0:06:00]} 15. Bg5 {[%emt 0:01:41]} f6 {[%emt 0:00:25]} 16. Bh6 {[%emt 0:01:30]} Ng7 {[%emt 0:08:31]} 17. Rad1 {[%emt 0:02:20]} Bd7 {[%emt 0:04:24]} 18. Kh2 {[%emt 0:07:48]} Qc7 {[%emt 0:06:50]} 19. Be3 {[%emt 0:01:39]} Rad8 {[%emt 0:00:21]} 20. f4 {[%emt 0:01:06]} Nf7 {[%emt 0:00:09]} 21. Qf2 {[%emt 0:05:59]} Rb8 {[%emt 0:02:25]} 22. g4 {[%emt 0:07:33]} b6 {[%emt 0:04:09]} 23. Kh1 {[%emt 0:00:42]} Qc8 {[%emt 0:05:43]} 24. Nf3 {[%emt 0:03:13]} Qc7 {[%emt 0:01:09]} 25. Nd4 {[%emt 0:00:19]} Qc8 {[%emt 0:00:05]} 26. Nf3 {[%emt 0:00:14]} Qc7 {[%emt 0:00:04]} 27. Nd2 {[%emt 0:00:07]} Ne6 {[%emt 0:03:43]} 28. f5 {[%emt 0:00:55]} Nc5 {[%emt 0:05:09]} 29. fxg6 {[%emt 0:06:21]} hxg6 {[%emt 0:00:07]} 30. Bd4 {[%emt 0:00:29]} Ne5 {[%emt 0:00:06]} 31. Qxf6 {[%emt 0:02:05]} Bg7 {[%emt 0:01:43]} 32. Qh4 {[%emt 0:00:55]} Ne6 {[%emt 0:05:58]} 33. Be3 {[%emt 0:00:51]} Rf8 {[%emt 0:02:24]} 34. Ne2 {[%emt 0:01:32]} g5 {[%emt 0:02:37]} 35. Bxg5 {[%emt 0:08:29]} Ng6 {[%emt 0:00:07]} 36. Qh5 {[%emt 0:00:02]} Be8 {[%emt 0:00:23]} 37. Be3 {[%emt 0:00:03]} Qe7 {[%emt 0:02:34]} 38. g5 {[%emt 0:01:22]} Nef4 {[%emt 0:05:09]} 39. Nxf4 {[%emt 0:02:04]} Nxf4 {[%emt 0:00:07]} 40. Qh4 {[%emt 0:00:00]} Nxg2 {[%emt 0:00:00]} 41. Kxg2 {[%emt 0:02:13]} Bg6 {[%emt 0:01:50]} 42. Rf1 {[%emt 0:19:31]} 1/2-1/2